Cogmind - Beta 14 @@@ ROGUE MODE // 2024.09.28 @ 14:32:06 Player: Tereza Result: Destroyed by P-70 Sage via exploding Nuclear Reactor Performance ------------- Evolutions (6) 3000 Regions Visited (18) 3600 Robots Destroyed (105) 525 Value Destroyed (4461) 4461 Prototype IDs (11) 220 Alien Tech Used (0) 0 Bonus (1800) 1800 TOTAL SCORE: 13606 Bonus ------- High Alert Combat Kills 441 Follower Combat Kills 2049 Network Hubs Disabled 400 Registered with UFD 300 Built Enhanced Grunts 300 Met R17 at Cetus 500 Friendly Fire -2190 Cogmind --------- Core Integrity 0/1150 Matter 284/300 Energy 13/100 System Corruption 13% Temperature Cool (0) Movement Core (50) Location -4/Factory Parts ------- > --- POWER (1) -------- (None) > --- PROPULSION (5) --- (None) > --- UTILITY (9) ------ Advanced Targeting Computer Hacking Suite Hacking Suite > --- WEAPON (4) ------- (None) > --- INVENTORY (5) ---- Flexi-carbon Leg Myomer Leg Falx DRS Beacon (Ready) Peak State ------------ > --- POWER ------------ Light Antimatter Reactor > --- PROPULSION ------- Carbon-fiber Leg VSS Leg Flexi-carbon Leg Flexi-carbon Leg > --- UTILITY ---------- Advanced Heat Sink Large Storage Unit Improved Signal Interpreter Targeting Computer Advanced Targeting Computer Centrium Medium Armor Plating Centrium Medium Armor Plating Hacking Suite A0-MCA's Component Scanner > --- WEAPON ----------- Advanced Variable Charge Gun Coil Gun Heavy Machine Gun > --- INVENTORY -------- Light Angular Momentum Engine Micro Fission Core Carbon-fiber Leg Flexi-carbon Leg Flexi-carbon Leg Huge Storage Unit Weight Redist. System Advanced Terrain Scanner Targeting Computer Plasma Rifle Improved Remote Datajack Falx Phasing Sabre DRS Beacon [Rating: 90] Favorites ----------- Power Light Nuclear Core Engine Angular Momentum Engine Power Core Light Nuclear Core Reactor Quantum Reactor Propulsion Flexi-carbon Leg Treads Light Treads Leg Flexi-carbon Leg Hover Unit Cooled Gravmag System Utility Targeting Computer Device Experimental Sensor Array Storage Large Storage Unit Processor Targeting Computer Hackware Hacking Suite Protection Centrium Medium Armor Plating Weapon Advanced Variable Charge Gun Energy Gun Advanced Variable Charge Gun Energy Cannon Phase Cannon Ballistic Gun Coil Gun Ballistic Cannon Assault Cannon Special Weapon Improved Remote Datajack Slashing Weapon Mining Claw Build | -11 -10 -10 -10 -8 -8 -8 -8 -6 -6 -6 -6 -6 -5 -5 -5 -5 -4 -4 ------- Run | Yrd Mat Min Sub Mat Sto Rec Scr Fac Ext Cet Arc Hub Fac Upp Upp Zhi Pro Fac Slots Evolved 12 | . . . . 4 . . . 4 . . . . 2 . . . . 2 Power . | . . . . . . . . . . . . . . . . . . . Propulsion 3 | . . . . 1 . . . 1 . . . . . . . . . 1 Utility 7 | . . . . 3 . . . 2 . . . . 2 . . . . . Weapon 2 | . . . . . . . . 1 . . . . . . . . . 1 Parts Attached 125 | 6 9 2 . 3 7 . 2 28 18 7 1 3 6 . 2 . 25 6 Power 13 | 1 2 1 . . . . . 1 2 2 . . . . . . 4 . Engine 6 | 1 1 . . . . . . 1 1 1 . . . . . . 1 . Core 5 | . 1 1 . . . . . . 1 . . . . . . . 2 . Reactor 2 | . . . . . . . . . . 1 . . . . . . 1 . Propulsion 38 | 2 2 1 . . 3 . . 7 7 1 1 2 3 . . . 8 1 Treads 2 | 2 . . . . . . . . . . . . . . . . . . Leg 35 | . 2 1 . . 3 . . 7 7 1 1 2 3 . . . 8 . Wheel . | . . . . . . . . . . . . . . . . . . . Hover 1 | . . . . . . . . . . . . . . . . . . 1 Flight . | . . . . . . . . . . . . . . . . . . . Utility 41 | 1 3 . . 2 3 . 1 12 2 1 . 1 2 . 2 . 7 4 Device 15 | . 2 . . 1 . . . 3 2 . . 1 1 . 1 . 2 2 Storage 6 | 1 1 . . . . . 1 2 . . . . . . . . 1 . Processor 11 | . . . . . 3 . . 3 . . . . 1 . . . 3 1 Hackware 4 | . . . . 1 . . . 1 . . . . . . . . 1 1 Protection 5 | . . . . . . . . 3 . 1 . . . . 1 . . . Artifact . | . . . . . . . . . . . . . . . . . . . Weapon 33 | 2 2 . . 1 1 . 1 8 7 3 . . 1 . . . 6 1 Energy Gun 9 | 1 . . . . . . . . 3 2 . . 1 . . . 2 . Energy Cannon 2 | . . . . . . . . 2 . . . . . . . . . . Ballistic Gun 15 | 1 1 . . 1 . . . 5 3 1 . . . . . . 2 1 Ballistic Cannon 4 | . 1 . . . 1 . . 1 1 . . . . . . . . . Launcher . | . . . . . . . . . . . . . . . . . . . Special Weapon 1 | . . . . . . . . . . . . . . . . . 1 . Impact Weapon . | . . . . . . . . . . . . . . . . . . . Slashing Weapon 2 | . . . . . . . 1 . . . . . . . . . 1 . Piercing Weapon . | . . . . . . . . . . . . . . . . . . . Special Melee Weapon . | . . . . . . . . . . . . . . . . . . . Unidentified Prototypes 4 | . . . . 1 . . . . . 3 . . . . . . . . Corrupted Parts 1 | . . . . . . . . . . 1 . . . . . . . . System Corruption 11 | . . . . . . . . . . 11 . . . . . . . . Parts Lost 68 | . 3 . . . 2 . . 11 9 . . 2 . . 2 . 27 12 Power 7 | . 1 . . . . . . 1 1 . . . . . . . 4 . Propulsion 17 | . 1 . . . . . . 2 4 . . . . . . . 9 1 Utility 26 | . 1 . . . 2 . . 3 1 . . 1 . . 2 . 7 9 Weapon 18 | . . . . . . . . 5 3 . . 1 . . . . 7 2 Highest Loss Streak 10 | . 3 . . . 1 . . 5 5 . . 1 . . 2 . 8 10 To Critical Strikes 1 | . . . . . . . . . . . . . . . 1 . . . Average Slot Usage (%) 93 | . 89 100 100 73 95 97 87 94 97 99 100 99 96 100 100 100 90 42 Engine 2 | . 10 5 . . . . . 4 5 3 . . . . . . . . Core 3 | . 1 8 14 9 9 9 9 1 . . . . . . . . . . Reactor 1 | . . . . . . . . . . . 6 6 5 5 5 5 3 . Leg 23 | . 7 28 28 18 24 27 27 24 25 26 26 26 23 23 23 23 20 . Device 12 | . 8 14 14 14 18 18 18 8 9 6 6 8 16 17 12 11 5 6 Storage 7 | . 14 14 14 9 9 9 9 6 6 6 6 6 5 5 5 5 4 . Processor 16 | . . . . . 8 18 18 19 20 20 20 16 16 17 17 17 27 19 Hackware 4 | . . . . 5 8 . . 5 6 6 6 6 5 5 5 5 5 10 Protection 2 | . . . . . . . . 3 3 5 6 6 5 5 9 11 5 . Energy Gun 2 | . 13 . . . . . . . 3 6 6 6 3 5 5 5 6 . Ballistic Gun 7 | . 13 14 14 9 9 7 . 9 10 7 13 13 11 11 11 11 5 3 Ballistic Cannon 2 | . 1 14 14 9 9 8 . 1 1 5 . . . . . . . . Slashing Weapon 1 | . . . . . . . 6 . . . . . . . . . . . Peak Build Rating 90 | 6 10 11 11 22 30 30 28 69 62 76 76 79 84 84 89 89 90 48 Average Rating 47 | 3 6 9 11 17 26 29 26 55 58 67 76 76 80 84 86 89 74 36 On Entrance 45 | . 6 8 11 11 22 30 25 28 60 60 76 76 71 84 84 89 89 37 Naked Turns . | . . . . . . . . . . . . . . . . . . . Heaviest Build 114 | 12 22 20 20 23 25 25 29 57 55 66 64 68 68 68 71 71 114 12 Greatest Support 80 | 40 40 20 20 20 37 37 37 80 80 67 67 67 73 73 73 73 73 11 Greatest Overweight (x) 3 | . 1 . . 1 1 . . 1 1 2 . 1 . . . . 3 3 Average Overweight (x) . | . . . . . . . . . . . . . . . . . . . Largest Inventory Capacity 25 | 8 10 10 10 10 10 10 15 25 15 15 15 15 15 15 15 15 25 5 Average Capacity 13 | 6 9 10 10 10 10 10 11 15 15 15 15 15 15 15 15 15 18 5 Most Carried 17 | 7 10 10 10 10 10 10 15 15 15 15 15 15 15 15 15 15 17 5 Average Carried 12 | 4 9 9 10 8 9 9 11 13 13 14 15 14 14 15 14 15 13 4 Final Capacity 15 | 8 10 10 10 10 10 10 15 15 15 15 15 15 15 15 15 15 5 5 Final Carried 15 | 6 10 10 10 8 10 10 15 13 15 15 15 15 15 15 15 15 5 4 Class Distribution -------------------- 50% | Mutant 28% | Scavenger-Gunner 8% | Gunner 5% | Scavenger-Mutant 3% | Skirmisher Dominant Class ---------------- Mutant | -10/Materials Mutant | -10/Mines Mutant | -10/Subcaves Mutant | -8/Materials Mutant | -8/Storage Mutant | -8/Recycling Mutant | -8/Scraptown Mutant | -6/Factory Gunner | -6/Extension Scavenger-Gunner | -6/Cetus Scavenger-Gunner | -6/Archives Scavenger-Mutant | -6/Hub_04(d) Scavenger-Gunner | -5/Factory Scavenger-Gunner | -5/Upper Caves Scavenger-Gunner | -5/Upper Caves Scavenger-Gunner | -5/Zhirov Scavenger-Gunner | -4/Proximity Caves Hacker-Mutant | -4/Factory Resources | -11 -10 -10 -10 -8 -8 -8 -8 -6 -6 -6 -6 -6 -5 -5 -5 -5 -4 -4 ----------- Run | Yrd Mat Min Sub Mat Sto Rec Scr Fac Ext Cet Arc Hub Fac Upp Upp Zhi Pro Fac Matter Collected 2854 | 189 153 55 . . 377 . 43 381 522 216 75 84 . 183 154 . 356 66 Remotely . | . . . . . . . . . . . . . . . . . . . Salvage Created 5244 | . 275 17 . . 455 . . 426 759 127 178 1567 162 58 236 . 911 73 Parts 246 | . 14 5 . . 27 . . 26 37 6 7 65 6 4 14 . 33 2 Haulers Intercepted 2 | . . . . . . . . . . . . 2 . . . . . . Recyclers Shooed 3 | . . . . . 1 . . . 2 . . . . . . . . . Parts Field Recycled . | . . . . . . . . . . . . . . . . . . . Retrieved Matter . | . . . . . . . . . . . . . . . . . . . Parts Self-Destructed 44 | . . . . . . . . . . . . . . 4 12 . 28 . Prevented . | . . . . . . . . . . . . . . . . . . . Kills | -11 -10 -10 -10 -8 -8 -8 -8 -6 -6 -6 -6 -6 -5 -5 -5 -5 -4 -4 ------- Run | Yrd Mat Min Sub Mat Sto Rec Scr Fac Ext Cet Arc Hub Fac Upp Upp Zhi Pro Fac Combat Hostiles Destroyed 75 | . 6 2 . . 11 . . 12 12 1 1 9 2 1 4 . 13 1 Guns 51 | . 6 1 . . 5 . . 7 10 1 1 1 2 1 4 . 11 1 Cannons 13 | . . 1 . . 6 . . 4 2 . . . . . . . . . AOE 4 | . . . . . . . . 1 . . . 3 . . . . . . Classes Destroyed 16 | . 3 1 . . 2 . . 3 1 . . 6 . . . . . . Worker 7 | . . . . . . . . 1 . . . 6 . . . . . . Builder 5 | . . . . . . . . . . . . 5 . . . . . . Tunneler 1 | . . . . . . . . . . . . 1 . . . . . . Hauler 2 | . . . . . . . . . . . . 2 . . . . . . Recycler 1 | . . . . . . . . . . . . 1 . . . . . . Operator 4 | . 1 . . . . . . . . . 1 2 . . . . . . Watcher 3 | . 1 . . . . . . . 1 . . . 1 . . . . . Swarmer 11 | . . 2 . . . . . 7 1 . . . . . . . 1 . Grunt 31 | . 6 . . . 3 . . 1 4 . . 7 2 . . . 7 1 Duelist 3 | . . . . . 1 . . . . . . . . . . . 2 . Sentry 17 | . . . . . 7 . . 1 6 . 1 . . . 1 . 1 . Specialist 1 | . . . . . . . . . . . . 1 . . . . . . Hunter 7 | . . . . . . . . 2 . . . 1 . 1 1 . 2 . Programmer 3 | . . . . . . . . 1 . . . . . . 2 . . . Behemoth 1 | . . . . . . . . . 1 . . . . . . . . . Cetus Guard 1 | . . . . . . . . . . 1 . . . . . . . . Enhanced Grunt 3 | . . . . . . . . . . . . 3 . . . . . . Thug 2 | . . . . . . . . . 1 . 1 . . . . . . . Savage 1 | . . . . . . . . . . . . 1 . . . . . . Butcher 1 | . . . . . . . . . . 1 . . . . . . . . Best Kill Streak 24 | . 3 2 . . 2 . . 3 2 1 1 24 2 1 2 . 5 1 Combat Bots Only 8 | . 3 2 . . 2 . . 3 2 1 1 8 2 1 2 . 5 1 Max Kills in Single Turn 22 | . 1 1 . . 1 . . 1 1 2 2 22 1 1 1 . 1 1 Gunslinging . | . . . . . . . . . . . . . . . . . . . Exploded 3 | . . . . . . . . 1 . . . 3 . . . . . . Melee . | . . . . . . . . . . . . . . . . . . . Uniques/NPCs Destroyed . | . . . . . . . . . . . . . . . . . . . Combat | -11 -10 -10 -10 -8 -8 -8 -8 -6 -6 -6 -6 -6 -5 -5 -5 -5 -4 -4 -------- Run | Yrd Mat Min Sub Mat Sto Rec Scr Fac Ext Cet Arc Hub Fac Upp Upp Zhi Pro Fac Hostile Shots Fired 958 | . 64 8 2 . 42 . . 131 248 31 4 13 1 5 45 . 231 133 Missed 329 | . 13 2 2 . 16 . . 36 105 14 1 2 1 3 18 . 67 49 Damage Taken 11235 | . 701 61 . . 417 . . 1903 1646 407 68 409 20 32 514 . 3192 1865 Core 2543 | . 106 22 . . 28 . . 260 175 28 21 43 . . 59 . 644 1157 Absorbed by Shields 278 | . . . . . . . . . 192 54 . . . . . . 5 27 Ignored by Resistances 89 | . . . . . . . . 89 . . . . . . . . . . Core Remaining (%) 61 | 100 . . 48 . . . 94 . . . . 38 . . . . 29 . Volleys Fired 291 | . 39 5 1 . 41 . . 48 38 16 11 6 6 6 18 . 36 20 Largest 3 | . 2 2 2 . 2 . . 3 3 3 3 3 3 3 3 . 3 1 Hottest 204 | . 60 55 55 . 67 . . 204 183 152 145 145 145 145 145 . 185 35 Shots Fired 646 | . 78 10 2 . 67 . . 104 107 25 30 19 17 18 49 . 100 20 Gun 521 | . 78 5 1 . 26 . . 53 87 18 30 19 17 18 49 . 100 20 Cannon 125 | . . 5 1 . 41 . . 51 20 7 . . . . . . . . Launcher . | . . . . . . . . . . . . . . . . . . . Special . | . . . . . . . . . . . . . . . . . . . Kinetic 434 | . 39 10 2 . 67 . . 60 66 23 23 12 12 12 36 . 52 20 Thermal 198 | . 39 . . . . . . 30 41 2 7 7 5 6 13 . 48 . Explosive . | . . . . . . . . . . . . . . . . . . . Electromagnetic 14 | . . . . . . . . 14 . . . . . . . . . . Robot Hit Streak 18 | . 11 3 1 . 10 . . 10 18 5 4 4 4 7 9 . 16 7 Robot Miss Streak 8 | . 2 3 1 . 4 . . 8 4 3 8 2 3 1 2 . 2 2 Penetration Max 2 | . . . . . . . . . . 2 2 1 . . . . 1 1 Secondary Targets 9 | . 2 . . . . . . 1 1 . . . 1 . . . 4 . Max Gunslinging Chain 1 | . 1 . . . . . . 1 1 . . . 1 . . . 1 . Shots Hit Robots 451 | . 54 5 1 . 46 . . 72 81 19 16 8 12 9 33 . 81 14 Core Hits 268 | . 21 3 . . 19 . . 28 69 16 12 35 5 4 10 . 38 8 Critical Kills 6 | . . . . . . . . . . 2 2 . . . . . 2 . Critical Parts Destroyed 5 | . . . . . . . . . . . 2 . . 2 . . . 1 Critical Strikes 16 | . . . 1 . 3 . . . . 2 4 . . 2 . . 3 1 Destroy 11 | . . . . . . . . . . 2 4 . . 2 . . 2 1 Blast 4 | . . . 1 . 3 . . . . . . . . . . . . . Sever 1 | . . . . . . . . . . . . . . . . . 1 . Melee Attacks 3 | . . . . . . . . . . . . . . . . . 3 . Impact . | . . . . . . . . . . . . . . . . . . . Slashing 3 | . . . . . . . . . . . . . . . . . 3 . Piercing . | . . . . . . . . . . . . . . . . . . . Sneak Attacks . | . . . . . . . . . . . . . . . . . . . Combat Hostiles . | . . . . . . . . . . . . . . . . . . . Follow-up Attacks . | . . . . . . . . . . . . . . . . . . . Damage Inflicted 13954 | . 512 64 19 . 990 . . 1679 1919 656 606 3641 293 192 839 . 2130 414 Guns 8135 | . 512 27 . . 295 . . 645 1486 391 606 398 293 192 839 . 2051 400 Cannons 2397 | . . 37 19 . 695 . . 948 433 265 . . . . . . . . Explosions 3329 | . . . . . . . . 86 . . . 3243 . . . . . . Melee 79 | . . . . . . . . . . . . . . . . . 79 . Ramming 14 | . . . . . . . . . . . . . . . . . . 14 Kinetic 6823 | . 220 64 19 . 990 . . 747 957 618 494 266 161 149 601 . 1137 400 Thermal 3528 | . 292 . . . . . . 665 962 38 112 132 132 43 238 . 914 . Explosive . | . . . . . . . . . . . . . . . . . . . Electromagnetic 3510 | . . . . . . . . 267 . . . 3243 . . . . . . Impact . | . . . . . . . . . . . . . . . . . . . Slashing 79 | . . . . . . . . . . . . . . . . . 79 . Piercing . | . . . . . . . . . . . . . . . . . . . Highest Corruption 13 | . . . . . 1 1 1 . . 11 11 12 . . 1 1 5 13 Average Corruption 2 | . . . . . 1 1 1 . . 11 11 11 . . 1 1 1 9 Corruption Purged . | . . . . . . . . . . . . . . . . . . . Corruption Blocked . | . . . . . . . . . . . . . . . . . . . Effects 56 | . . . . . 6 4 16 . . 14 5 3 . . 1 . 6 1 Message Errors 17 | . . . . . 3 1 6 . . 4 1 . . . 1 . . 1 Matter Fused 9 | . . . . . . . 2 . . 3 . 2 . . . . 2 . Heat Flow Errors 5 | . . . . . 1 . 1 . . 2 1 . . . . . . . Energy Discharges 11 | . . . . . 1 2 3 . . 3 . . . . . . 2 . Data Loss (minor) 7 | . . . . . 1 . 4 . . 1 1 . . . . . . . Data Loss (major) 3 | . . . . . . 1 . . . . 1 . . . . . 1 . Misfires 3 | . . . . . . . . . . 1 1 1 . . . . . . Weapon Failures 1 | . . . . . . . . . . . . . . . . . 1 . Overload Shots . | . . . . . . . . . . . . . . . . . . . Overflow Damage 124 | . . . . . 6 . . 20 13 2 . 83 . . . . . . Projectiles 41 | . . . . . 6 . . 20 13 2 . . . . . . . . Explosions 83 | . . . . . . . . . . . . 83 . . . . . . Melee . | . . . . . . . . . . . . . . . . . . . Knockbacks 9 | . . 1 . . 6 . . 1 . 1 . . . . . . . . Impact . | . . . . . . . . . . . . . . . . . . . Kinetic 9 | . . 1 . . 6 . . 1 . 1 . . . . . . . . Secondary . | . . . . . . . . . . . . . . . . . . . Self-Inflicted Damage 221 | . . . . . . . . 114 . . . 100 . . . . . 7 Shots 3 | . . . . . . . . 2 . . . 1 . . . . . . Rammed 5 | . . . . . . . . . . . . . . . . . . 5 Targets Rammed 5 | . . . . . . . . . . . . . . . . . . 5 Kicked . | . . . . . . . . . . . . . . . . . . . Crushed . | . . . . . . . . . . . . . . . . . . . Highest Temperature 378 | . 223 26 . . 223 . 145 378 300 233 282 296 172 172 304 . 306 19 Average Temperature 94 | . 106 14 . . 34 . 72 130 82 74 90 148 84 66 133 . 63 6 Received Heat Transfer 2127 | . 435 18 . . 225 . . 150 361 9 18 9 9 . . . 468 425 Effects 4 | . . . . . . . . 3 . . . 1 . . . . . . Energy Bleed 2 | . . . . . . . . 1 . . . 1 . . . . . . Damage (minor) 2 | . . . . . . . . 2 . . . . . . . . . . Siege Activations . | . . . . . . . . . . . . . . . . . . . Robots Corrupted 6 | . . . . . . . . . . . . 6 . . . . . . Combat Hostiles 5 | . . . . . . . . . . . . 5 . . . . . . Parts Fried 15 | . . . . . . . . 1 . . . 14 . . . . . . Impact Corruptions . | . . . . . . . . . . . . . . . . . . . Robots Melted 2 | . . . . . . . . . . . . . . . . . 2 . Combat Hostiles 2 | . . . . . . . . . . . . . . . . . 2 . Parts Melted 6 | . 1 . . . . . . . 2 . . . . . . . 3 . Heat Transferred 5456 | . 675 . . . . . . 753 1706 55 148 148 148 74 259 . 1490 . Parts Sabotaged . | . . . . . . . . . . . . . . . . . . . Parts Stolen . | . . . . . . . . . . . . . . . . . . . Parts Stripped . | . . . . . . . . . . . . . . . . . . . Power Chain Reactions . | . . . . . . . . . . . . . . . . . . . Alert | -11 -10 -10 -10 -8 -8 -8 -8 -6 -6 -6 -6 -6 -5 -5 -5 -5 -4 -4 ------- Run | Yrd Mat Min Sub Mat Sto Rec Scr Fac Ext Cet Arc Hub Fac Upp Upp Zhi Pro Fac Peak Influence 1442 | . 199 131 . 15 373 85 . 339 607 580 383 1442 879 . . . . 102 Initial 706 | . . . . . 5 85 . . 93 316 152 133 706 . . . . . Average 215 | . 54 34 . . 228 85 . 131 323 406 344 348 729 . . . . 28 Maximum Alert Level 4 | . . . . . 1 . . 1 2 2 1 4 3 . . . . . Low Security (%) 61 | 100 100 100 . 100 39 100 . 95 34 . 3 55 . . . . . 100 Level 1 20 | . . . . . 60 . . 4 29 26 96 5 . . . . . . Level 2 13 | . . . . . . . . . 36 73 . 36 . . . . . . Level 3 4 | . . . . . . . . . . . . . 100 . . . . . Level 4 . | . . . . . . . . . . . . 2 . . . . . . Level 5 . | . . . . . . . . . . . . . . . . . . . High Security . | . . . . . . . . . . . . . . . . . . . Max Security . | . . . . . . . . . . . . . . . . . . . Squads Dispatched 24 | . 1 . . . 1 . . 9 5 . . 6 . . . . 1 1 Investigation 5 | . . . . . . . . 1 3 . . 1 . . . . . . Extermination 1 | . . . . . . . . 1 . . . . . . . . . . Reinforcement 12 | . 1 . . . . . . 4 1 . . 5 . . . . . 1 Assault 3 | . . . . . . . . 1 1 . . . . . . . 1 . Garrison 3 | . . . . . 1 . . 2 . . . . . . . . . . Intercept . | . . . . . . . . . . . . . . . . . . . Searches Triggered . | . . . . . . . . . . . . . . . . . . . Construction Impeded 2 | . . . . . . . . . 1 . . 1 . . . . . . Haulers Reinforced . | . . . . . . . . . . . . . . . . . . . Active Scanning Responses . | . . . . . . . . . . . . . . . . . . . Cargo Convoy Interrupts . | . . . . . . . . . . . . . . . . . . . Stealth | -11 -10 -10 -10 -8 -8 -8 -8 -6 -6 -6 -6 -6 -5 -5 -5 -5 -4 -4 --------- Run | Yrd Mat Min Sub Mat Sto Rec Scr Fac Ext Cet Arc Hub Fac Upp Upp Zhi Pro Fac Distress Signals 11 | . 1 . . 1 2 . . 1 1 2 . 2 . . . . . 1 Communications Jammed . | . . . . . . . . . . . . . . . . . . . Distress Signals . | . . . . . . . . . . . . . . . . . . . Times Spotted 175 | . 12 5 3 1 18 . . 17 27 10 11 14 7 5 4 . 23 18 Peak Tracking Total 13 | . 3 2 2 2 4 . . 4 5 5 2 9 4 5 2 . 8 13 Tactical Retreats 14 | . . 1 . . 1 . . 4 2 . . . 1 . . . 4 1 Traps | -11 -10 -10 -10 -8 -8 -8 -8 -6 -6 -6 -6 -6 -5 -5 -5 -5 -4 -4 ------- Run | Yrd Mat Min Sub Mat Sto Rec Scr Fac Ext Cet Arc Hub Fac Upp Upp Zhi Pro Fac Traps Triggered 8 | . . . . . 2 . . . 3 . . 1 . . . . . 2 Indirectly 1 | . . . . . . . . . . . . 1 . . . . . . Trap Hack Attempts . | . . . . . . . . . . . . . . . . . . . Triggered . | . . . . . . . . . . . . . . . . . . . Disarmed . | . . . . . . . . . . . . . . . . . . . Reprogrammed . | . . . . . . . . . . . . . . . . . . . Reused . | . . . . . . . . . . . . . . . . . . . Traps Extracted . | . . . . . . . . . . . . . . . . . . . Installed . | . . . . . . . . . . . . . . . . . . . Triggered . | . . . . . . . . . . . . . . . . . . . Machines | -11 -10 -10 -10 -8 -8 -8 -8 -6 -6 -6 -6 -6 -5 -5 -5 -5 -4 -4 ---------- Run | Yrd Mat Min Sub Mat Sto Rec Scr Fac Ext Cet Arc Hub Fac Upp Upp Zhi Pro Fac Machines Disabled 23 | . . . . . 2 . . 6 1 . 4 10 . . . . . . Max in Single Turn 9 | . . . . . . . . 3 . . 1 9 . . . . . . Garrison Access 2 | . . . . . 1 . . 1 . . . . . . . . . . Network Hub 2 | . . . . . . . . . . . . 2 . . . . . . Machines Repaired . | . . . . . . . . . . . . . . . . . . . Machines Dismantled . | . . . . . . . . . . . . . . . . . . . Machines Sabotaged . | . . . . . . . . . . . . . . . . . . . Overloaded Fab Kills . | . . . . . . . . . . . . . . . . . . . Hacking | -11 -10 -10 -10 -8 -8 -8 -8 -6 -6 -6 -6 -6 -5 -5 -5 -5 -4 -4 --------- Run | Yrd Mat Min Sub Mat Sto Rec Scr Fac Ext Cet Arc Hub Fac Upp Upp Zhi Pro Fac Machines Accessed 41 | . 2 . . . 6 4 3 4 15 2 1 1 . . 1 . . 2 Terminals 35 | . 2 . . . 5 4 . 3 15 2 . 1 . . 1 . . 2 Fabricators . | . . . . . . . . . . . . . . . . . . . Repair Stations . | . . . . . . . . . . . . . . . . . . . Recycling Units . | . . . . . . . . . . . . . . . . . . . Scanalyzers . | . . . . . . . . . . . . . . . . . . . Garrison Access 2 | . . . . . 1 . . 1 . . . . . . . . . . Total Hacks 79 | . 4 . . . 12 6 6 10 28 3 1 3 . . 1 . . 5 Successful 43 | . 1 . . . 7 1 6 6 16 1 1 1 . . 1 . . 2 Failed 36 | . 3 . . . 5 5 . 4 12 2 . 2 . . . . . 3 Catastrophic 10 | . 1 . . . 2 1 . . 4 1 . . . . . . . 1 Database Lockouts . | . . . . . . . . . . . . . . . . . . . Manual 22 | . 3 . . . 4 . . 2 5 2 . 3 . . . . . 3 Terminals 66 | . 4 . . . 9 6 . 7 28 3 . 3 . . 1 . . 5 Fabricators . | . . . . . . . . . . . . . . . . . . . Repair Stations . | . . . . . . . . . . . . . . . . . . . Recycling Units . | . . . . . . . . . . . . . . . . . . . Scanalyzers . | . . . . . . . . . . . . . . . . . . . Garrison Access 6 | . . . . . 3 . . 3 . . . . . . . . . . Terminal Hacks 39 | . 1 . . . 5 1 6 4 16 1 1 1 . . 1 . . 2 Record 8 | . . . . . . . 5 . . 1 1 . . . 1 . . . Robot Analysis 1 | . . . . . 1 . . . . . . . . . . . . . Open Door 10 | . . . . . 1 . . . 9 . . . . . . . . . Level Access Points 1 | . . . . . . . . 1 . . . . . . . . . . Branch Access Points 2 | . . . . . . . . 1 . . . 1 . . . . . . Alert Level 7 | . . . . . 1 1 . 1 3 . . . . . . . . 1 Unreport Threat 2 | . . . . . . . . . 2 . . . . . . . . . Locate Traps 2 | . . . . . 1 . . . . . . . . . . . . 1 Security Status 1 | . . . . . . . . . 1 . . . . . . . . . Surveillance Status 2 | . 1 . . . . . . 1 . . . . . . . . . . Zone Layout 2 | . . . . . 1 . . . 1 . . . . . . . . . Derelict Proto ID Bank 1 | . . . . . . . 1 . . . . . . . . . . . Fabricator Hacks . | . . . . . . . . . . . . . . . . . . . Repair Station Hacks . | . . . . . . . . . . . . . . . . . . . Recycling Unit Hacks . | . . . . . . . . . . . . . . . . . . . Scanalyzer . | . . . . . . . . . . . . . . . . . . . Garrison Access Hacks 3 | . . . . . 2 . . 1 . . . . . . . . . . Unlock Access 1 | . . . . . . . . 1 . . . . . . . . . . Seal Access 1 | . . . . . 1 . . . . . . . . . . . . . Coupler Status 1 | . . . . . 1 . . . . . . . . . . . . . Unauthorized Hacks 1 | . . . . . . . . 1 . . . . . . . . . . Terminals 1 | . . . . . . . . 1 . . . . . . . . . . Assimilate 1 | . . . . . . . . 1 . . . . . . . . . . Fabricators . | . . . . . . . . . . . . . . . . . . . Repair Stations . | . . . . . . . . . . . . . . . . . . . Recycling Units . | . . . . . . . . . . . . . . . . . . . Scanalyzers . | . . . . . . . . . . . . . . . . . . . Garrison Access . | . . . . . . . . . . . . . . . . . . . Data Cores Recovered . | . . . . . . . . . . . . . . . . . . . Used . | . . . . . . . . . . . . . . . . . . . Hacking Detections 24 | . 2 . . . 3 3 . 3 10 1 . 1 . . . . . 1 Full Trace Events 5 | . . . . . . . . 1 3 . . 1 . . . . . . Feedback Events . | . . . . . . . . . . . . . . . . . . . Feedback Blocked . | . . . . . . . . . . . . . . . . . . . Robot Schematics Acquired . | . . . . . . . . . . . . . . . . . . . Robots Built . | . . . . . . . . . . . . . . . . . . . Authchips . | . . . . . . . . . . . . . . . . . . . Time . | . . . . . . . . . . . . . . . . . . . Total Robot Build Rating . | . . . . . . . . . . . . . . . . . . . Part Schematics Acquired . | . . . . . . . . . . . . . . . . . . . Parts Built . | . . . . . . . . . . . . . . . . . . . Authchips . | . . . . . . . . . . . . . . . . . . . Time . | . . . . . . . . . . . . . . . . . . . Total Part Build Rating . | . . . . . . . . . . . . . . . . . . . Parts Repaired . | . . . . . . . . . . . . . . . . . . . Time . | . . . . . . . . . . . . . . . . . . . Parts Recycled . | . . . . . . . . . . . . . . . . . . . Recycled Matter . | . . . . . . . . . . . . . . . . . . . Retrieved Matter . | . . . . . . . . . . . . . . . . . . . Retrieved Components . | . . . . . . . . . . . . . . . . . . . Parts Scanalyzed . | . . . . . . . . . . . . . . . . . . . Part Schematics Acquired . | . . . . . . . . . . . . . . . . . . . Parts Damaged . | . . . . . . . . . . . . . . . . . . . Bothacking | -11 -10 -10 -10 -8 -8 -8 -8 -6 -6 -6 -6 -6 -5 -5 -5 -5 -4 -4 ------------ Run | Yrd Mat Min Sub Mat Sto Rec Scr Fac Ext Cet Arc Hub Fac Upp Upp Zhi Pro Fac Used RIF Installer . | . . . . . . . . . . . . . . . . . . . Robots Hacked . | . . . . . . . . . . . . . . . . . . . Non-combat . | . . . . . . . . . . . . . . . . . . . Combat . | . . . . . . . . . . . . . . . . . . . Robot Hacks Applied . | . . . . . . . . . . . . . . . . . . . Relay Couplers Released 2 | . . . . . . . . 2 . . . . . . . . . . Machine Destruction 2 | . . . . . . . . 2 . . . . . . . . . . Fabnet Peak Effective % . | . . . . . . . . . . . . . . . . . . . Robots Rewired 6 | . . . . . . . . . 4 . . . . . . . 2 . Allies Hacked . | . . . . . . . . . . . . . . . . . . . Hacks Repelled . | . . . . . . . . . . . . . . . . . . . Allies | -11 -10 -10 -10 -8 -8 -8 -8 -6 -6 -6 -6 -6 -5 -5 -5 -5 -4 -4 -------- Run | Yrd Mat Min Sub Mat Sto Rec Scr Fac Ext Cet Arc Hub Fac Upp Upp Zhi Pro Fac Total Allies 29 | . . 5 . . . . . 1 16 5 . . . . . . 2 . Largest Group 13 | . . 5 5 4 4 1 1 1 12 13 11 8 4 1 . . 2 . Highest-Rated Group 822 | . . 91 91 71 71 31 31 31 454 822 755 560 252 96 . . 94 . Highest-Rated Ally 159 | . . 31 31 31 31 31 31 31 159 151 144 96 96 96 . . 47 . Total Orders . | . . . . . . . . . . . . . . . . . . . Ally Attacks 358 | . . 4 6 1 32 . . 1 181 64 24 25 14 1 . . 5 . Total Damage 8145 | . . 54 99 20 453 . . 20 3403 1835 726 1059 258 47 . . 171 . Kills 51 | . . 2 1 . 6 . . . 19 9 3 8 2 . . . 1 . Allies Corrupted 1 | . . . . . . . . . . . . 1 . . . . . . Allies Melted . | . . . . . . . . . . . . . . . . . . . Intel | -11 -10 -10 -10 -8 -8 -8 -8 -6 -6 -6 -6 -6 -5 -5 -5 -5 -4 -4 ------- Run | Yrd Mat Min Sub Mat Sto Rec Scr Fac Ext Cet Arc Hub Fac Upp Upp Zhi Pro Fac Robot Analysis Total 1 | . . . . . 1 . . . . . . . . . . . . . Derelict Logs Recovered 5 | . . 1 . . . . . . . . . . . 1 1 . 2 . Drone Launches . | . . . . . . . . . . . . . . . . . . . Drone Recoveries . | . . . . . . . . . . . . . . . . . . . Exploration | -11 -10 -10 -10 -8 -8 -8 -8 -6 -6 -6 -6 -6 -5 -5 -5 -5 -4 -4 ------------- Run | Yrd Mat Min Sub Mat Sto Rec Scr Fac Ext Cet Arc Hub Fac Upp Upp Zhi Pro Fac Turns Passed 9611 | 79 482 460 123 121 811 372 1721 1139 1158 486 206 109 242 455 460 12 938 237 Spaces Moved 6651 | 42 230 361 101 76 500 295 1389 651 748 316 139 65 181 358 357 11 558 273 Core 149 | 2 . . . . . . . . . . . . . . . . 52 95 Treads 182 | 40 142 . . . . . . . . . . . . . . . . . Legs 6142 | . 88 361 101 76 500 295 1389 651 748 316 139 65 181 358 357 11 506 . Wheels . | . . . . . . . . . . . . . . . . . . . Hover 178 | . . . . . . . . . . . . . . . . . . 178 Flight . | . . . . . . . . . . . . . . . . . . . Fastest Speed 50 | 50 120 120 120 120 120 123 123 120 112 112 112 112 112 112 112 112 50 50 Average Speed 121 | 154 145 120 120 155 134 123 123 125 122 114 112 131 112 112 112 112 136 61 Slowest Speed 260 | 160 190 120 120 190 190 123 123 190 190 260 112 187 112 112 112 112 260 200 Overloaded Moves . | . . . . . . . . . . . . . . . . . . . Propulsion Burnouts . | . . . . . . . . . . . . . . . . . . . Robots Hopped . | . . . . . . . . . . . . . . . . . . . Cave-ins Triggered . | . . . . . . . . . . . . . . . . . . . Exploration Rate (%) 44 | 3 36 75 12 8 75 48 93 20 71 71 95 19 7 57 61 7 87 8 Regions Visited 18 Branch Regions 13 Pre-discovered Areas 4 | . . 1 . . . . 1 . . . . . . . . . 2 . Known Exits Taken 13 | . . . . . 1 1 1 1 1 1 1 1 1 1 1 1 1 . Unknown Exits Taken 5 | 1 1 1 1 1 . . . . . . . . . . . . . . Scrap Searched 6 | . . . . . . . 1 . . . . . . 1 1 . 3 . Spaces Dug 7 | . . . . . . . . 2 . . . . . 5 . . . . Terrain Destroyed 376 | . . . . . 6 . . 12 4 . 4 305 8 11 17 . 8 1 Melee . | . . . . . . . . . . . . . . . . . . . Projectile 67 | . . . . . 6 . . 4 4 . 4 4 8 11 17 . 8 1 AOE 309 | . . . . . . . . 8 . . . 301 . . . . . . Terrain Rammed . | . . . . . . . . . . . . . . . . . . . Walls Destroyed . | . . . . . . . . . . . . . . . . . . . Machines Disabled . | . . . . . . . . . . . . . . . . . . . Actions | -11 -10 -10 -10 -8 -8 -8 -8 -6 -6 -6 -6 -6 -5 -5 -5 -5 -4 -4 --------- Run | Yrd Mat Min Sub Mat Sto Rec Scr Fac Ext Cet Arc Hub Fac Upp Upp Zhi Pro Fac Total 7626 | 54 306 382 101 79 574 306 1401 888 912 419 165 76 207 398 378 10 650 320 Wait 376 | . 16 7 . . 11 4 3 131 51 73 15 . 11 35 . . 6 13 Move 6633 | 41 229 360 100 75 499 294 1388 650 747 315 138 64 180 357 356 10 557 273 Hop . | . . . . . . . . . . . . . . . . . . . Pick Up 76 | 7 6 3 . . 6 3 7 16 9 1 . 1 1 . 2 . 14 . Fast Attach 39 | 5 6 . . . 2 . . 5 5 3 . . 2 . . . 6 5 Attach 52 | 1 2 . . 2 2 . 1 15 6 1 . 1 1 . 2 . 17 1 Detach 5 | . 2 . . . . . . 3 . . . . . . . . . . Swap 34 | . 1 2 . 1 3 . 1 8 7 3 1 2 3 . . . 2 . Drop 59 | . 5 5 . 1 5 5 1 12 9 7 . 2 3 . . . 4 . Fire 291 | . 39 5 1 . 41 . . 48 38 16 11 6 6 6 18 . 36 20 Melee 3 | . . . . . . . . . . . . . . . . . 3 . Ram 5 | . . . . . . . . . . . . . . . . . . 5 Kick . | . . . . . . . . . . . . . . . . . . . Crush . | . . . . . . . . . . . . . . . . . . . Escape Stasis 10 | . . . . . 5 . . . 5 . . . . . . . . . Rewire 43 | . . . . . . . . . 35 . . . . . . . 5 3 Trap . | . . . . . . . . . . . . . . . . . . . Miscellaneous . | . . . . . . . . . . . . . . . . . . . Route ------- -11/Scrapyard -10/Materials -10/Mines -10/Subcaves -8/Materials -8/Storage -8/Recycling (discovered 2 exits: *Fac / *Scr) -8/Scraptown (discovered 2 exits: *Fac x2) -6/Factory (discovered 8 exits: Fac x4 / Low x2 / *Ext x2) -6/Extension (discovered 2 exits: *Fac / *Cet) -6/Cetus (discovered 2 exits: *Fac / *Arc) -6/Archives (discovered 3 exits: *Fac / *Hub x2) -6/Hub_04(d) -5/Factory -5/Upper Caves -5/Upper Caves (discovered 2 exits: *Fac / *Zhi) -5/Zhirov -4/Proximity Caves -4/Factory (discovered 1 exit: Arm) History --------- Turn | Location | Event 8 | -11/Scrapyard | Discovered new exit (range 15) 80 | -11/Scrapyard | Entered Materials 184 | -10/Materials | Discovered new exit (range 8) 303 | -10/Materials | Build established: Mutant 418 | -10/Materials | Lost 3 parts (1p1n1u) 562 | -10/Materials | Entered Mines 577 | -10/Mines | Learned Materials garrison access intel 581 | -10/Mines | Learned location of Storage (-8) 666 | -10/Mines | Assisted by bots powering up and referring to "LRC-V3" 834 | -10/Mines | Found a damaged Exp. Sensor Array with a note attached 837 | -10/Mines | Found Prototype Device 874 | -10/Mines | Found a hidden stash of uninstalled traps 930 | -10/Mines | Core integrity fell below 50% 1015 | -10/Mines | Discovered new exit (range 5) 1022 | -10/Mines | Entered Subcaves 1022 | -10/Subcaves | Accompanied by 5 allies 1027 | -10/Subcaves | Led the pair of lost Derelicts to an unsafe place 1133 | -10/Subcaves | Discovered new exit (range 8) 1142 | -10/Subcaves | Ambushed by swarm of Subdwellers 1145 | -10/Subcaves | Entered Materials 1145 | -8/Materials | Accompanied by 4 allies 1145 | -8/Materials | Evolved 4 slots: Propulsion x1, Utility x3 1145 | -8/Materials | Discovered new exit (range 14) 1146 | -8/Materials | Loaded intel: 1 garrison access location 1192 | -8/Materials | Identified Exp. Sensor Array 1266 | -8/Materials | Entered Storage 1266 | -8/Storage | Accompanied by 4 allies 1510 | -8/Storage | Garrison activated, responded to threat 2067 | -8/Storage | Used back door to open Recycling access 2067 | -8/Storage | Discovered new exit (range 5) 2070 | -8/Storage | Identified exit to Recycling 2077 | -8/Storage | Entered Recycling 2077 | -8/Recycling | Accompanied by 1 ally 2228 | -8/Recycling | Discovered new exit (range 6) 2394 | -8/Recycling | Scanned before Scraplab entrance 2428 | -8/Recycling | Entered Scraplab 2438 | -8/Recycling | Discovered new exit (range 3) 2439 | -8/Recycling | Identified exit to Scraptown 2449 | -8/Recycling | Entered Scraptown 2449 | -8/Scraptown | Accompanied by 1 ally 2633 | -8/Scraptown | Visited Supply Room 2650 | -8/Scraptown | Visited Spacefarers 3051 | -8/Scraptown | Heard Great Nut preacher, LISTEN AND RECITE! 3063 | -8/Scraptown | Visited Assassins FH 3098 | -8/Scraptown | Visited Cyclists 3139 | -8/Scraptown | Visited The Evicted 3203 | -8/Scraptown | Visited UFD Registry 3221 | -8/Scraptown | Visited SPCMW 3255 | -8/Scraptown | Visited Junk Repository 3309 | -8/Scraptown | Discovered new exit (range 5) 3313 | -8/Scraptown | Identified exit to Factory 3442 | -8/Scraptown | Registered with UFD as "Hammerchip" 3475 | -8/Scraptown | Visited Research Penetration Think Tank 3502 | -8/Scraptown | Visited Curators Association 3532 | -8/Scraptown | Visited Science Guys 3576 | -8/Scraptown | Visited A0-MCA Data Center 3583 | -8/Scraptown | Given a C rating by A0-MCA 3591 | -8/Scraptown | Found A0-MCA's Component Scanner 3804 | -8/Scraptown | Visited Supply Room 3855 | -8/Scraptown | Visited Derelict Rescue Squad 3864 | -8/Scraptown | Found DRS Beacon 3888 | -8/Scraptown | Visited Science Testing Area 3918 | -8/Scraptown | Visited Abandonware Association 3942 | -8/Scraptown | Learned abandonware demo "TRNCOAT.EXE" 3942 | -8/Scraptown | Learned abandonware demo "KABOOM.EXE" 3987 | -8/Scraptown | Visited Chapter 10 4019 | -8/Scraptown | Visited Cartography Club 4165 | -8/Scraptown | Discovered exit to Factory (range 3) 4170 | -8/Scraptown | Entered Factory 4170 | -6/Factory | Accompanied by 1 ally 4170 | -6/Factory | Evolved 4 slots: Propulsion x1, Utility x2, Weapon x1 4256 | -6/Factory | Identified exit to Factory 4379 | -6/Factory | Garrison activated, responded to threat 4472 | -6/Factory | Identified exit to Garrison 4547 | -6/Factory | Lost 3 parts (1p2w) 4861 | -6/Factory | Lost 3 parts (1u2w) 4939 | -6/Factory | Lost 5 parts (2n2u1w) 5049 | -6/Factory | Identified exit to Lower Caves 5049 | -6/Factory | Identified exit to Extension 5309 | -6/Factory | Entered Extension 5327 | -6/Extension | Build established: Gunner 5558 | -6/Extension | Rescued a captive Derelict 5698 | -6/Extension | Rescued a captive Derelict 5699 | -6/Extension | Rescued a captive Derelict 5729 | -6/Extension | Rescued A7 5855 | -6/Extension | Rescued a captive Derelict 5856 | -6/Extension | Rescued a captive Derelict 5955 | -6/Extension | Spotted B-75 Beast 5956 | -6/Extension | Rescued a captive Derelict 5964 | -6/Extension | Spotted B-75 Beast 5985 | -6/Extension | Allies destroyed B-75 Beast 6003 | -6/Extension | Destroyed B-75 Beast 6030 | -6/Extension | Lost 5 parts (2n3w) 6036 | -6/Extension | Rescued a captive Derelict 6205 | -6/Extension | Rescued a captive Derelict 6207 | -6/Extension | Rescued a captive Derelict 6225 | -6/Extension | Rescued a captive Derelict 6254 | -6/Extension | Rescued a captive Derelict 6255 | -6/Extension | Rescued a captive Derelict 6300 | -6/Extension | Core integrity fell below 50% 6327 | -6/Extension | Lost 3 parts (1p2n) 6359 | -6/Extension | First assault squad dispatched 6436 | -6/Extension | Discovered exit to Factory (range 10) 6438 | -6/Extension | Discovered new exit (range 6) 6457 | -6/Extension | Identified exit to Cetus 6467 | -6/Extension | Entered Cetus 6467 | -6/Cetus | Accompanied by 11 allies (A7) 6472 | -6/Cetus | Acquired a Cetus Manufacturing Module code from A7 6473 | -6/Cetus | Build established: Scavenger-Gunner 6483 | -6/Cetus | Spotted Cetus Guard 6483 | -6/Cetus | Spotted Cetus Guard 6485 | -6/Cetus | Spotted Cetus Guard 6485 | -6/Cetus | Spotted Cetus Guard 6505 | -6/Cetus | Allies destroyed Cetus Guard 6505 | -6/Cetus | Allies destroyed Cetus Guard 6536 | -6/Cetus | System corruption reached 10% 6537 | -6/Cetus | Lost 3 allies 6608 | -6/Cetus | Started Cetus Manufacturing Module 6633 | -6/Cetus | Manufactured an Enhanced Grunt 6658 | -6/Cetus | Manufactured an Enhanced Grunt 6683 | -6/Cetus | Manufactured an Enhanced Grunt 6708 | -6/Cetus | Manufactured an Enhanced Grunt 6733 | -6/Cetus | Manufactured an Enhanced Grunt 6810 | -6/Cetus | Discovered new exit (range 15) 6831 | -6/Cetus | Spotted Cetus Guard 6831 | -6/Cetus | Spotted Cetus Guard 6834 | -6/Cetus | Spotted Cetus Guard 6839 | -6/Cetus | Allies destroyed Cetus Guard 6840 | -6/Cetus | Spotted Cetus Guard 6842 | -6/Cetus | Destroyed Cetus Guard 6845 | -6/Cetus | Allies destroyed Cetus Guard 6860 | -6/Cetus | Allies destroyed Cetus Guard 6866 | -6/Cetus | Discovered exit to Factory (range 16) 6871 | -6/Cetus | Met Revision 17 6931 | -6/Cetus | Identified exit to Archives 6953 | -6/Cetus | Entered Archives 6953 | -6/Archives | Accompanied by 11 allies (A7) 7004 | -6/Archives | Unable to access archive contents 7017 | -6/Archives | Unable to access archive contents 7033 | -6/Archives | Discovered new exit (range 13) 7046 | -6/Archives | Identified exit to Hub_04(d) 7070 | -6/Archives | Discovered exit to Factory (range 16) 7120 | -6/Archives | Discovered exit to Hub_04(d) (range 16) 7159 | -6/Archives | Entered Hub_04(d) 7159 | -6/Hub_04(d) | Accompanied by 8 allies 7208 | -6/Hub_04(d) | Discovered exit to Factory (range 12) 7265 | -6/Hub_04(d) | Network Hub disabled 7265 | -6/Hub_04(d) | Network Hub disabled 7268 | -6/Hub_04(d) | Entered Factory 7268 | -5/Factory | Accompanied by 4 allies 7268 | -5/Factory | Evolved 2 slots: Utility x2 7289 | -5/Factory | Destroyed 8 combat bots 7297 | -5/Factory | Lost 4 allies 7465 | -5/Factory | Discovered new exit (range 9) 7504 | -5/Factory | Identified exit to Upper Caves 7510 | -5/Factory | Entered Upper Caves 7510 | -5/Upper Caves | Accompanied by 1 ally 7654 | -5/Upper Caves | Identified exit to Upper Caves 7965 | -5/Upper Caves | Entered another Upper Caves area 8004 | -5/Upper Caves | Discovered new exit (range 5) 8008 | -5/Upper Caves | Identified exit to Factory 8287 | -5/Upper Caves | Attracted the attention of an 0b10 checkpoint 8308 | -5/Upper Caves | Learned location of 1 exit from Factory 8402 | -5/Upper Caves | Discovered new exit (range 3) 8405 | -5/Upper Caves | Identified exit to Zhirov 8425 | -5/Upper Caves | Entered Zhirov 8425 | -5/Zhirov | Discovered new exit (range 3) 8428 | -5/Zhirov | Identified exit to Proximity Caves 8437 | -5/Zhirov | Entered Proximity Caves 8588 | -4/Proximity Caves | Attracted the attention of an 0b10 outpost 8657 | -4/Proximity Caves | Lost 4 parts (1p1n1u1w) 8758 | -4/Proximity Caves | Lost 3 parts (1n1u1w) 8837 | -4/Proximity Caves | Learned location of Quarantine (-3) 9017 | -4/Proximity Caves | Learned location of Testing (-2) 9096 | -4/Proximity Caves | Spotted B-86 Titan 9139 | -4/Proximity Caves | Lost 3 parts (1u2w) 9274 | -4/Proximity Caves | Lost 6 parts (1p4n1u) 9302 | -4/Proximity Caves | Attracted the attention of an 0b10 checkpoint 9339 | -4/Proximity Caves | Core integrity fell below 50% 9364 | -4/Proximity Caves | Discovered exit to Factory (range 5) 9375 | -4/Proximity Caves | Entered Factory 9375 | -4/Factory | Evolved 2 slots: Propulsion x1, Weapon x1 9376 | -4/Factory | Identified exit to Armory 9376 | -4/Factory | Lost 8 parts (1p3n2u2w) 9563 | -4/Factory | Core integrity fell below 50% 9565 | -4/Factory | System corruption reached 10% 9572 | -4/Factory | Core integrity fell below 20% 9593 | -4/Factory | Lost 10 parts (1n7u2w) 9612 | -4/Factory | Destroyed by P-70 Sage via exploding Nuclear Reactor Last Messages --------------- Attempting to rewire I-47 Archangel. K-01 Serf pushes I-47 Archangel. Attempting to rewire I-47 Archangel. K-01 Serf pushes I-47 Archangel. Attempting to rewire I-47 Archangel. K-01 Serf pushes I-47 Archangel. K-01 Serf latches onto I-47 Archangel. K-01 Serf pushes I-47 Archangel. Connecting with Terminal... >>Traps(Locate) Found 6 traps in 1 array: 6x Stasis Trap Map updated. Acquired Hacking Suite. Acquired Imp. Force Field. Nuclear Reactor explodes. Imp. Force Field destroyed. Nuclear Reactor explodes. G-67 Veteran destroyed. Imp. System Shield destroyed. Map ----- +----------------------------------------------------+ | ????????????????????????????????# #??????????? | | ???????????????????^????????????# #??????????? | | ????????????????????????????????# #??????????? | | ???????????????????^^^??????????# #??????????? | | ???????????????????????????????## ##?????????? | | ???????????????????^?^?????????# #?????????? | | ??????????????????# ########## #?????????? | | ??????????????????+ #?????????? | | ??????????????????# #?????????? | | ??????????????????# #?????????? | | ??????????????????######+####### #?????????? | | ???????????????????????????????# #?????????? | | ???????????????????????????????### ###?????????? | | ?????????????????????????????????# #???????????? | | ?????????????????????????????????# #?????#?????? | | ?????????????????????????????????# #???? #?????? | | ???????????????????############### ##?? #?????? | | ???????????????????# # ## #?????? | | ???????????????????#""" """ # " #?????? | | ???????????????????#"Y """ + "T +?????? | | ???????????????????#""" """ # #?????? | | ?????????????####### [g # ### ##?????? | | ?????????????+ % ### ###?? #??????? | | ?????????????# #?# #?????#??????? | | ???????????????""" #?# #????????????? | | ???????????????""" p @ g #?# #????????????? | | ???????????????""" #?# #????????????? | | ?????????????# # #?# #????????????? | | ?????????????# ????# #?# #????????????? | | ???????????????????### ######?# ?????????????? | | ?????????????????????#######??????# ?????????????? | | ??????????????????????????????????? ?????????????? | | ??????????????????????????????????? ?????????????? | | ??????????????????????????????????? ?????????????? | | ??????????????????????????????????? ?????????????? | | ??????????????????????????????????? ?????????????? | | ?????????????????????????????????????????????????? | | ?????????????????????????????????????????????????? | | ?????????????????????????????????????????????????? | | ?????????????????????????????????????????????????? | | ?????????????????????????????????????????????????? | | ?????????????????????????????????????????????????? | | ?????????????????????????????????????????????????? | | ?????????????????????????????????????????????????? | | ?????????????????????????????????????????????????? | | ?????????????????????????????????????????????????? | | ?????????????????????????????????????????????????? | | ?????????????????????????????????????????????????? | | ?????????????????????????????????????????????????? | | ?????????????????????????????????????????????????? | +----------------------------------------------------+ Best States ------------- Heat Dissipation 59 Energy Generation 25 Energy Capacity 350 Matter Stores 300 Matter Capacity 300 Sight Range 16 Robot Scan Range 20 Terrain Scan Range 20 Terrain Scan Density 10 Additional Mass Support 6 Armor Coverage 450 Resistance: TH 20 Evasion (%) 55 Targeting Accuracy 24 Melee Accuracy 6 Target Analysis 5 Recoil Reduction 2 Kinecelleration 30 Offensive Hacking 20 Defensive Hacking 12 Item Schematics ----------------- None Robot Schematics ------------------ None Fabricated ------------ Nothing Alien Tech Used ----------------- None Achievements -------------- Collateral Damage Project G-00 Revising The Future Challenges ------------ None Game ------ Seed DefenseDynamicPerforator Manual? 0 Play Time 01:35:23 Cumulative 51.7 hours Start 2024.09.28 @ 12:52:13 End 2024.09.28 @ 14:32:06 Sessions 1 Manual Loads 0 Difficulty Rogue Special Mode None Game No. 54 Rogue 54 Adventurer 0 Explorer 0 Win Type - Total 0 Types 0/0/0/0/0/0/0/0/0 Lore% 35 Gallery% 38 Achievement% 31 Wizard Run 0 Options --------- Layout 1 ASCII 0 Keyboard 1 Movement Numpad Keybinds 0 Fullscreen 1 Font 24/Smallcaps Map View 50x35 Zoom Use 0% Tactical HUD 0 Map Filters NONE Filters NONE Steam 1 RUN: ee848e30-e936-4bad-bad2-f30332df544a